Cogmind - Beta 10.2 @@@ ROGUE MODE // 2021.02.28 @ 09:59:18 Player: gammafunk Result: Self-destructed Performance ------------- Evolutions (1) 500 Regions Visited (3) 600 Robots Destroyed (37) 185 Value Destroyed (799) 799 Prototype IDs (0) 0 Alien Tech Used (0) 0 Bonus (0) 0 TOTAL SCORE: 2084 Bonus ------- None Cogmind --------- Core Integrity 295/400 Matter 220/300 Energy 48/250 System Corruption 0% Temperature Cool (6) Movement Treading (180) Ox1 Location -9/Materials Parts ------- > --- POWER (1) -------- Ion Engine > --- PROPULSION (2) --- Light Treads Light Treads > --- UTILITY (4) ------ Improved Heat Sink Large Storage Unit Large Storage Unit Light Armor Plating > --- WEAPON (2) ------- Spread Laser Light EM Pulse Cannon > --- INVENTORY (16) --- Light Treads Light Treads Light Treads Improved Signal Interpreter Improved Terrain Scanner Improved Targeting Computer Heavy Assault Rifle Heavy Assault Rifle Heavy Assault Rifle Heavy Assault Rifle Mini Grenade Launcher Mini Grenade Launcher Peak State ------------ > --- POWER ------------ Ion Engine > --- PROPULSION ------- Light Treads Light Treads > --- UTILITY ---------- Improved Heat Sink Large Storage Unit Large Storage Unit Improved Terrain Scanner > --- WEAPON ----------- Heavy Assault Rifle Heavy Assault Rifle > --- INVENTORY -------- Ion Engine Light Treads Improved Signal Interpreter Spread Laser Spread Laser Heavy Assault Rifle Heavy Assault Rifle Mini Grenade Launcher Mini Grenade Launcher [Rating: 15] Favorites ----------- Power Ion Engine Engine Ion Engine Propulsion Light Treads Treads Light Treads Utility Large Storage Unit Device Improved Heat Sink Storage Large Storage Unit Protection Light Armor Plating Weapon Heavy Assault Rifle Energy Gun Spread Laser Energy Cannon Light EM Pulse Cannon Ballistic Gun Heavy Assault Rifle Launcher Mini Grenade Launcher Build | -11 -10 -10 -9 ------- Run | Scr Mat Min Mat Slots Evolved 2 | . . . 2 Power . | . . . . Propulsion . | . . . . Utility 2 | . . . 2 Weapon . | . . . . Parts Attached 38 | 6 18 . 14 Power 5 | 1 3 . 1 Engine 5 | 1 3 . 1 Core . | . . . . Reactor . | . . . . Propulsion 7 | 2 3 . 2 Treads 7 | 2 3 . 2 Leg . | . . . . Wheel . | . . . . Hover . | . . . . Flight . | . . . . Utility 6 | 1 2 . 3 Device 2 | . 1 . 1 Storage 3 | 1 1 . 1 Processor . | . . . . Hackware . | . . . . Protection 1 | . . . 1 Artifact . | . . . . Weapon 20 | 2 10 . 8 Energy Gun 6 | 1 2 . 3 Energy Cannon 1 | . . . 1 Ballistic Gun 8 | 1 5 . 2 Ballistic Cannon . | . . . . Launcher 5 | . 3 . 2 Special Weapon . | . . . . Impact Weapon . | . . . . Slashing Weapon . | . . . . Piercing Weapon . | . . . . Special Melee Weapon . | . . . . Unidentified Prototypes . | . . . . Parts Lost 4 | . 2 . 2 Power 2 | . 1 . 1 Propulsion 1 | . 1 . . Utility . | . . . . Weapon 1 | . . . 1 Highest Loss Streak 2 | . 1 . 2 Average Slot Usage (%) 96 | . 96 100 95 Engine 12 | . 13 14 10 Treads 26 | . 27 28 22 Device 13 | . 11 14 14 Storage 16 | . 14 14 22 Protection 1 | . . . 4 Energy Gun 4 | . 4 . 8 Ballistic Gun 20 | . 23 28 11 Naked Turns . | . . . . Heaviest Build 47 | 13 28 28 47 Greatest Support 40 | 40 40 40 40 Greatest Overweight (x) 1 | . 1 . 1 Average Overweight (x) . | . . . . Largest Inventory Capacity 16 | 6 10 10 16 Average Capacity 10 | 5 7 10 16 Most Carried 14 | 3 10 10 14 Average Carried 8 | 1 7 10 11 Final Capacity 16 | 6 10 10 16 Final Carried 12 | 3 10 10 12 Class Distribution -------------------- 57% | Mutant 42% | Scavenger-Mutant Dominant Class ---------------- Mutant | -10/Materials Scavenger-Mutant | -10/Mines Scavenger-Mutant | -9/Materials Resources | -11 -10 -10 -9 ----------- Run | Scr Mat Min Mat Matter Collected 838 | 230 492 6 110 Remotely . | . . . . Salvage Created 888 | . 676 17 195 Parts 73 | . 45 4 24 Haulers Intercepted 2 | . 2 . . Recyclers Shooed 3 | . 2 . 1 Parts Field Recycled . | . . . . Retrieved Matter . | . . . . Parts Self-Destructed . | . . . . Prevented . | . . . . Kills | -11 -10 -10 -9 ------- Run | Scr Mat Min Mat Combat Hostiles Destroyed 28 | . 15 . 13 Guns 11 | . 9 . 2 Cannons 1 | . . . 1 AOE 16 | . 6 . 10 Classes Destroyed 8 | . 6 1 1 Worker 1 | . . 1 . Hauler 2 | . 2 . . Recycler 2 | . 1 . 1 Operator 1 | . 1 . . Watcher 3 | . 1 . 2 Swarmer 13 | . 3 . 10 Grunt 13 | . 12 . 1 Sentry 2 | . . . 2 Best Kill Streak 7 | . 6 1 7 Combat Bots Only 7 | . 6 . 7 Max Kills in Single Turn 3 | . 2 1 3 Gunslinging . | . . . . Exploded 3 | . 2 . 3 Melee . | . . . . Uniques/NPCs Destroyed . | . . . . Combat | -11 -10 -10 -9 -------- Run | Scr Mat Min Mat Damage Taken 1211 | . 716 . 495 Core 229 | . 124 . 105 Absorbed by Shields . | . . . . Core Remaining (%) 75 | 100 . 50 . Volleys Fired 67 | . 52 1 14 Largest 2 | . 2 2 2 Hottest 130 | . 70 46 130 Shots Fired 117 | . 93 2 22 Gun 99 | . 83 2 14 Cannon 2 | . . . 2 Launcher 16 | . 10 . 6 Special . | . . . . Kinetic 66 | . 64 2 . Thermal 33 | . 19 . 14 Explosive 16 | . 10 . 6 Electromagnetic 2 | . . . 2 Robot Hit Streak 13 | . 11 6 13 Robot Miss Streak 4 | . 4 . 4 Penetration Max . | . . . . Secondary Targets . | . . . . Shots Hit Robots 71 | . 54 2 15 Core Hits 69 | . 37 1 31 Critical Hits . | . . . . Critical Kills . | . . . . Critical Parts Destroyed . | . . . . Melee Attacks . | . . . . Impact . | . . . . Slashing . | . . . . Piercing . | . . . . Sneak Attacks . | . . . . Combat Hostiles . | . . . . Follow-up Attacks . | . . . . Damage Inflicted 2090 | . 1208 25 857 Guns 878 | . 693 25 160 Cannons 19 | . . . 19 Explosions 1193 | . 515 . 678 Melee . | . . . . Ramming . | . . . . Kinetic 584 | . 559 25 . Thermal 294 | . 134 . 160 Explosive 1193 | . 515 . 678 Electromagnetic 19 | . . . 19 Impact . | . . . . Slashing . | . . . . Piercing . | . . . . Highest Corruption . | . . . . Average Corruption . | . . . . Corruption Purged . | . . . . Overload Shots . | . . . . Overflow Damage 5 | . . . 5 Projectiles . | . . . . Explosions 5 | . . . 5 Melee . | . . . . Knockbacks . | . . . . Impact . | . . . . Kinetic . | . . . . Secondary . | . . . . Self-Inflicted Damage 55 | . 55 . . Shots 2 | . 2 . . Rammed . | . . . . Targets Rammed . | . . . . Kicked . | . . . . Crushed . | . . . . Highest Temperature 228 | . 228 . 114 Average Temperature 89 | . 113 . 39 Received Heat Transfer 408 | . 306 . 102 Effects 1 | . 1 . . Interference 1 | . 1 . . Siege Activations . | . . . . Robots Corrupted . | . . . . Combat Hostiles . | . . . . Parts Fried . | . . . . Impact Corruptions . | . . . . Robots Melted . | . . . . Combat Hostiles . | . . . . Parts Melted . | . . . . Heat Transferred 568 | . 383 . 185 Parts Sabotaged . | . . . . Parts Stolen . | . . . . Parts Stripped . | . . . . Power Chain Reactions . | . . . . Missiles Intercepted . | . . . . Alert | -11 -10 -10 -9 ------- Run | Scr Mat Min Mat Peak Influence 362 | . 337 48 362 Initial 43 | . . 43 18 Average 147 | . 180 44 155 Maximum Alert Level 1 | . 1 . 1 Low Security (%) 72 | 100 67 100 67 Level 1 27 | . 32 . 32 Level 2 . | . . . . Level 3 . | . . . . Level 4 . | . . . . Level 5 . | . . . . High Security . | . . . . Max Security . | . . . . Squads Dispatched 7 | . 4 . 3 Investigation 3 | . 2 . 1 Extermination . | . . . . Reinforcement 4 | . 2 . 2 Assault . | . . . . Garrison . | . . . . Intercept . | . . . . Construction Impeded . | . . . . Haulers Reinforced . | . . . . Stealth | -11 -10 -10 -9 --------- Run | Scr Mat Min Mat Distress Signals 1 | . . . 1 Communications Jammed . | . . . . Distress Signals . | . . . . Times Spotted 49 | . 29 . 20 Peak Tracking Total 12 | . 5 . 12 Tactical Retreats . | . . . . Traps | -11 -10 -10 -9 ------- Run | Scr Mat Min Mat Traps Triggered 2 | . 1 . 1 Indirectly . | . . . . Trap Hack Attempts . | . . . . Triggered . | . . . . Disarmed . | . . . . Reprogrammed . | . . . . Reused . | . . . . Traps Extracted . | . . . . Installed . | . . . . Triggered . | . . . . Machines | -11 -10 -10 -9 ---------- Run | Scr Mat Min Mat Machines Disabled 4 | . 3 . 1 Max in Single Turn 1 | . 1 . 1 Machines Sabotaged . | . . . . Garrisons Compromised . | . . . . Overloaded Fab Kills . | . . . . Fab Network Shutdowns . | . . . . Hacking | -11 -10 -10 -9 --------- Run | Scr Mat Min Mat Machines Accessed 5 | . 4 . 1 Terminals 4 | . 4 . . Fabricators . | . . . . Repair Stations 1 | . . . 1 Recycling Units . | . . . . Scanalyzers . | . . . . Garrison Access . | . . . . Total Hacks 16 | . 14 . 2 Successful 7 | . 6 . 1 Failed 9 | . 8 . 1 Catastrophic 1 | . 1 . . Database Lockouts . | . . . . Manual 9 | . 9 . . Terminals 14 | . 14 . . Fabricators . | . . . . Repair Stations 2 | . . . 2 Recycling Units . | . . . . Scanalyzers . | . . . . Garrison Access . | . . . . Terminal Hacks 4 | . 4 . . Part Schematic 1 | . 1 . . Robot Analysis 1 | . 1 . . Terminal Index 1 | . 1 . . Alert Level 1 | . 1 . . Fabricator Hacks . | . . . . Repair Station Hacks 1 | . . . 1 Scan Component 1 | . . . 1 Recycling Unit Hacks . | . . . . Scanalyzer . | . . . . Garrison Access Hacks . | . . . . Unauthorized Hacks 2 | . 2 . . Terminals 2 | . 2 . . Botnet 2 | . 2 . . Fabricators . | . . . . Repair Stations . | . . . . Recycling Units . | . . . . Scanalyzers . | . . . . Garrison Access . | . . . . Data Cores Recovered 1 | . 1 . . Used 1 | . 1 . . Hacking Detections 5 | . 4 . 1 Full Trace Events 2 | . 2 . . Feedback Events . | . . . . Feedback Blocked . | . . . . Robot Schematics Acquired . | . . . . Robots Built . | . . . . Matter . | . . . . Time . | . . . . Total Robot Build Rating . | . . . . Part Schematics Acquired 1 | . 1 . . Parts Built . | . . . . Matter . | . . . . Time . | . . . . Total Part Build Rating . | . . . . Parts Repaired . | . . . . Time . | . . . . Parts Recycled . | . . . . Recycled Matter . | . . . . Retrieved Matter . | . . . . Retrieved Components . | . . . . Parts Scanalyzed . | . . . . Part Schematics Acquired . | . . . . Parts Damaged . | . . . . Bothacking | -11 -10 -10 -9 ------------ Run | Scr Mat Min Mat Used RIF Installer . | . . . . Robots Hacked . | . . . . Non-combat . | . . . . Combat . | . . . . Robot Hacks Applied . | . . . . Relay Couplers Released . | . . . . Robots Rewired . | . . . . Allies Hacked . | . . . . Hacks Repelled . | . . . . Allies | -11 -10 -10 -9 -------- Run | Scr Mat Min Mat Total Allies . | . . . . Largest Group . | . . . . Highest-Rated Group . | . . . . Highest-Rated Ally . | . . . . Total Orders . | . . . . Ally Attacks . | . . . . Total Damage . | . . . . Kills . | . . . . Allies Corrupted . | . . . . Allies Melted . | . . . . Intel | -11 -10 -10 -9 ------- Run | Scr Mat Min Mat Robot Analysis Total 1 | . 1 . . Derelict Logs Recovered . | . . . . Drone Launches . | . . . . Drone Recoveries . | . . . . Exploration | -11 -10 -10 -9 ------------- Run | Scr Mat Min Mat Turns Passed 1503 | 73 828 187 415 Spaces Moved 734 | 42 400 116 176 Core 5 | 5 . . . Treads 729 | 37 400 116 176 Legs . | . . . . Wheels . | . . . . Hover . | . . . . Flight . | . . . . Fastest Speed 50 | 50 160 160 160 Average Speed 163 | 146 160 160 179 Slowest Speed 180 | 160 180 160 180 Overloaded Moves . | . . . . Propulsion Burnouts . | . . . . Robots Hopped . | . . . . Cave-ins Triggered . | . . . . Exploration Rate (%) 28 | 4 59 28 23 Regions Visited 3 Branch Regions 1 Pre-discovered Areas 1 | . . 1 . Known Exits Taken . | . . . . Unknown Exits Taken 3 | 1 1 1 . Scrap Searched . | . . . . Spaces Dug . | . . . . Terrain Destroyed 138 | . 57 . 81 Melee . | . . . . Projectile . | . . . . AOE 138 | . 57 . 81 Terrain Rammed . | . . . . Walls Destroyed . | . . . . Machines Disabled . | . . . . Actions | -11 -10 -10 -9 --------- Run | Scr Mat Min Mat Total 912 | 50 498 116 248 Wait 43 | . 3 . 40 Move 731 | 41 399 115 176 Hop . | . . . . Pick Up 18 | 3 12 . 3 Fast Attach 11 | 6 4 . 1 Attach 4 | . . . 4 Detach 1 | . . . 1 Swap 23 | . 14 . 9 Drop 14 | . 14 . . Fire 67 | . 52 1 14 Melee . | . . . . Ram . | . . . . Kick . | . . . . Crush . | . . . . Escape Stasis . | . . . . Rewire . | . . . . Trap . | . . . . Miscellaneous . | . . . . Route ------- -11/Scrapyard -10/Materials (discovered 2 exits: *Mat / [*Min]) -10/Mines (discovered 2 exits: *Mat x2) -9/Materials (discovered 1 exit: [*Min]) History --------- Turn | Location | Event 7 | -11/Scrapyard | Discovered new exit (range 15) 74 | -11/Scrapyard | Entered Materials 301 | -10/Materials | Build established: Mutant 379 | -10/Materials | Discovered new exit (range 13) 840 | -10/Materials | Discovered new exit (range 9) 902 | -10/Materials | Entered Mines 920 | -10/Mines | Discovered new exit (range 11) 923 | -10/Mines | Learned location of Storage (-7) 982 | -10/Mines | Assembled infested the area 987 | -10/Mines | Assisted by a Guerilla fighting off Assembled 1069 | -10/Mines | Discovered new exit (range 5) 1089 | -10/Mines | Entered Materials 1089 | -9/Materials | Evolved 2 slots: Utility x2 1150 | -9/Materials | Build established: Scavenger-Mutant 1403 | -9/Materials | Discovered new exit (range 7) 1486 | -9/Materials | Destroyed 7 combat bots 1504 | -9/Materials | Self-destructed Last Messages --------------- ALERT: Hostiles spotted, dispatching reinforcements to Terminal M012. K-01 Serf cleans the Machine. Triggered Alarm Trap. An alarm sounds. ALERT: Alarm triggered, dispatching investigation squad. U-05 Engineer lays Concrete. T-07 Excavator is excavating. U-05 Engineer lays Concrete. Ion Engine destroyed. U-05 Engineer lays Concrete. S-10 Pest destroyed. U-05 Engineer lays Concrete. Destroyed Lgt. Ion Engine. S-10 Pest destroyed. Destroyed Flight Unit. T-07 Excavator is excavating. S-10 Pest destroyed. Spread Laser destroyed. Y-45 Defender destroyed. Map ----- +----------------------------------------------------+ | ?????????????????????????? + ############# | | ????????????????????????# # ###########?# | | ????????????????????????# ??# #! = #?? | | ????????????????????????####??#??# # [ = ] #?? | | ????????????????????????#######?## # #?? | | ????????????????????????#""|"|"??# %+ *#?# | | ????????????????????????# "|"|" ?# #########+#?# | | ???????????????????"" ## ## #???????? #?? | | ?????????????????? #?????????#?? | | ?????????????????? < #???????????? | | ?????????????????? #???????#???? | | ????????????????????##+## ## #??"?"????? ? | | ????????????????????????########## #???????????? | | ??????????????????????????# + #???????????? | | ??????????????????????????# """ # #???????#???? | | ??????????????????????????# """ =# #???????????? | | ??????????????????????????# """ ## ## ??????????? | | ??????????#???????????????# ## #????????????? | | ??????? ### ?????????????# ## #?#??????????? | | ??????? ???????????######### #????????????? | | ?????? ################### #????????????? | | ?????? #????????????? | | ?????? * #????????????? | | ?????? % #????????????? | | ?????? = #"####/##############????????????? | | ??????? ????????#gg!@ !!!#?????????????????? | | ??????? #????????????# g !! #?????????????????? | | ?????????????????????# !! #?????????????????? | | ?????????????????????# """ #?????????????????? | | ?????????????????????# """ #?????????????????? | | ?????????????????????# """ [ #?????????????????? | | ?????????????????????# #?????????????????? | | ?????????????????????# #?????????????????? | | ?????????????????????###########?????????????????? | | ?????????????????????????????????????????????????? | | ?????????????????????????????????????????????????? | | ?????????????????????????????????????????????????? | | ?????????????????????????????????????????????????? | | ?????????????????????????????????????????????????? | | ?????????????????????????????????????????????????? | | ?????????????????????????????????????????????????? | | ?????????????????????????????????????????????????? | | ?????????????????????????????????????????????????? | | ?????????????????????????????????????????????????? | | ?????????????????????????????????????????????????? | | ?????????????????????????????????????????????????? | | ?????????????????????????????????????????????????? | | ?????????????????????????????????????????????????? | | ?????????????????????????????????????????????????? | | ?????????????????????????????????????????????????? | +----------------------------------------------------+ Best States ------------- Heat Dissipation 42 Energy Generation 10 Energy Capacity 250 Matter Stores 300 Matter Capacity 300 Sight Range 16 Terrain Scan Range 16 Terrain Scan Density 10 Armor Coverage 150 Evasion (%) 40 Recoil Reduction 2 Item Schematics ----------------- Hcp. Storage Unit | -10/Materials | Hacked Robot Schematics ------------------ None Fabricated ------------ Nothing Alien Tech Used ----------------- None Achievements -------------- None Challenges ------------ None Game ------ Seed GlidesysGlidesysExpander Manual? 0 Play Time 00:11:52 Cumulative 23.4 hours Start 2021.02.28 @ 09:47:15 End 2021.02.28 @ 09:59:18 Sessions 1 Manual Loads 0 Difficulty Rogue Special Mode None Game No. 19 Rogue 19 Adventurer 0 Explorer 0 Win Type - Total 0 Types 0/0/0/0/0/0/0/0/0 Lore% 40 Gallery% 25 Achievement% 30 Wizard Run 0 Options --------- ASCII 0 Keyboard 1 Movement Vi Keybinds 0 Fullscreen 2 Font 12/Smallcaps Map View 60x54 Tactical HUD 0 Map Filters NONE Filters NONE Steam 0 RUN: 0fda2a37-5923-486b-b43d-f3c315ce2337